Cogmind - Beta 16 @@@ ROGUE MODE // 2025.11.11 @ 18:06:34 Player: Naughtyusername Result: Destroyed by S-43 Plague with Heavy Machine Gun Performance ------------- Evolutions (9) 4500 Regions Visited (22) 4400 Robots Destroyed (297) 1485 Value Destroyed (9656) 9656 Prototype IDs (30) 600 Alien Tech Used (0) 0 Bonus (3838) 3838 TOTAL SCORE: 24479 Bonus ------- High Alert Combat Kills 678 Follower Combat Kills 1600 Network Hubs Disabled 400 Registered with UFD 300 Met Optimus in HQ 500 Met R17 at Cetus 500 Friendly Fire -140 Cogmind --------- Core Integrity 0/1600 Matter 290/300 Energy 80/100 System Corruption 1% Temperature Cool (0) Movement Flying (40) Location -1/Access Parts ------- > --- POWER (2) -------- (None) > --- PROPULSION (10) -- Field Propulsion Array > --- UTILITY (10) ----- Transport Network Coupler Improved Armor Integrity Analyzer Advanced Hacking Suite > --- WEAPON (3) ------- (None) > --- INVENTORY (5) ---- Light Fission Core Long-range Sensor Array ECM Suite Centrium Medium Armor Plating Enhanced Nova Cannon Peak State ------------ > --- POWER ------------ Fusion Reactor Quantum Reactor > --- PROPULSION ------- Carbon-fiber Leg Carbon-fiber Leg Flexi-carbon Leg Flexi-carbon Leg Flexi-carbon Leg Thunder Leg > --- UTILITY ---------- Advanced Heat Sink High-capacity Storage Unit Enhanced Optical Array Advanced Signal Interpreter Armor Integrity Analyzer Improved Weapon Cycler Centrium Medium Armor Plating Hacking Suite > --- WEAPON ----------- KE Penetrator Railgun Advanced KE Penetrator > --- INVENTORY -------- Neutrino Core Centrium Heavy Treads Centrium Heavy Treads Flexi-carbon Leg Flexi-carbon Leg Advanced Heat Sink Advanced Terrain Scanner Improved Actuator Array ECM Suite Improved Medium Armor Plating Centrium Medium Armor Plating Centrium Medium Armor Plating Centrium Medium Armor Plating Advanced System Shield Gauss Rifle [Rating: 112] Favorites ----------- Power Improved Ion Engine Engine Improved Ion Engine Power Core Light Fission Core Reactor Fusion Reactor Propulsion Light Treads Treads Light Treads Leg Carbon-fiber Leg Wheel Armored Huge Wheel Flight Unit Xenon Bombardment Thruster Utility High-capacity Storage Unit Device Cooling System Storage High-capacity Storage Unit Processor Enhanced Optical Array Hackware Hacking Suite Protection Hardened Light Armor Plating Weapon Gatling Laser Energy Gun Gatling Laser Energy Cannon Advanced Beam Cannon Ballistic Gun Enhanced Autogun Launcher EMP Blaster Special Weapon Mining Laser Impact Weapon Power Maul Slashing Weapon Scythe Special Melee Weapon Improved Datajack Build | -11 -10 -10 -9 -9 -9 -8 -8 -8 -8 -8 -6 -6 -6 -5 -5 -5 -5 -5 -4 -3 -2 -1 ------- Run | Yrd Mat Min Mat Min Exi Min Mat Sto Rec Scr Fac Was Fac Fac Ext Cet Arc Hub Fac Res Res Acc Slots Evolved 18 | . . . 2 . . . 2 . . . 4 . . 2 . . . . 2 2 2 2 Power 1 | . . . . . . . . . . . . . . . . . . . 1 . . . Propulsion 8 | . . . 1 . . . 1 . . . 1 . . . . . . . 1 2 1 1 Utility 8 | . . . 1 . . . . . . . 3 . . 2 . . . . . . 1 1 Weapon 1 | . . . . . . . 1 . . . . . . . . . . . . . . . Parts Attached 207 | 7 8 6 18 2 . 4 14 24 1 10 31 . 12 9 20 6 2 8 12 10 . 3 Power 20 | 1 1 1 1 . . . . 2 . 1 3 . 2 1 . 1 . . 3 2 . 1 Engine 9 | 1 1 1 1 . . . . 2 . . 2 . 1 . . . . . . . . . Core 5 | . . . . . . . . . . 1 1 . 1 . . . . . 2 . . . Reactor 6 | . . . . . . . . . . . . . . 1 . 1 . . 1 2 . 1 Propulsion 74 | 2 1 1 4 1 . 1 8 15 . 1 10 . 4 2 8 1 . 6 1 7 . 1 Treads 30 | 2 1 1 4 1 . 1 8 12 . . . . . . . . . . . . . . Leg 14 | . . . . . . . . . . . . . . . 7 1 . 6 . . . . Wheel 1 | . . . . . . . . . . . . . . . 1 . . . . . . . Hover . | . . . . . . . . . . . . . . . . . . . . . . . Flight 29 | . . . . . . . . 3 . 1 10 . 4 2 . . . . 1 7 . 1 Utility 67 | 2 3 2 6 . . 1 2 1 . 4 16 . 6 5 8 2 . 1 7 1 . . Device 28 | 1 2 . 3 . . . 1 . . 2 4 . 5 3 4 . . 1 2 . . . Storage 5 | 1 1 1 1 . . . . . . . . . . . 1 . . . . . . . Processor 12 | . . . 1 . . . . . . 1 5 . 1 . 1 1 . . 2 . . . Hackware 9 | . . . . . . . . . . 1 3 . . 1 1 . . . 2 1 . . Protection 13 | . . 1 1 . . 1 1 1 . . 4 . . 1 1 1 . . 1 . . . Artifact . | . . . . . . . . . . . . . . . . . . . . . . . Weapon 46 | 2 3 2 7 1 . 2 4 6 1 4 2 . . 1 4 2 2 1 1 . . 1 Energy Gun 15 | 1 1 . 6 . . . 2 4 . . . . . . 1 . . . . . . . Energy Cannon 5 | . . . . . . 2 1 1 . . . . . . . . . . . . . 1 Ballistic Gun 14 | 1 1 . 1 . . . 1 . . 2 . . . . 3 2 2 1 . . . . Ballistic Cannon . | . . . . . . . . . . . . . . . . . . . . . . . Launcher 5 | . 1 1 . 1 . . . 1 . . 1 . . . . . . . . . . . Special Weapon 1 | . . 1 . . . . . . . . . . . . . . . . . . . . Impact Weapon 1 | . . . . . . . . . . . 1 . . . . . . . . . . . Slashing Weapon 3 | . . . . . . . . . . 1 . . . 1 . . . . 1 . . . Piercing Weapon . | . . . . . . . . . . . . . . . . . . . . . . . Special Melee Weapon 2 | . . . . . . . . . 1 1 . . . . . . . . . . . . Unidentified Prototypes 15 | . . . 3 . . . 1 3 . . 1 . 2 2 . 2 . . 1 . . . Corrupted Parts 2 | . . . . . . . . . . . . . . 1 . . . 1 . . . . System Corruption 10 | . . . . . . . . . . . . . . 7 . . . 3 . . . . Parts Lost 81 | . 4 2 4 . . 3 6 1 . . 16 1 5 10 3 3 . 8 4 8 . 3 Power 7 | . 1 1 1 . . . . . . . 1 . . . . . . 1 . 1 . 1 Propulsion 44 | . 1 1 2 . . 1 6 . . . 8 1 4 5 1 1 . 5 1 5 . 2 Utility 20 | . . . 1 . . 1 . 1 . . 5 . . 4 2 1 . 1 2 2 . . Weapon 10 | . 2 . . . . 1 . . . . 2 . 1 1 . 1 . 1 1 . . . Highest Loss Streak 7 | . 1 2 1 . . 3 1 1 . . 5 1 4 7 2 2 . 4 4 6 . 3 To Critical Strikes 4 | . . . . . . . . . . . . . . . 1 1 . 2 . . . . Average Backups 14 | . 4 14 16 20 20 18 19 19 20 17 3 5 4 4 8 18 18 15 8 5 5 4 Power 1 | . . . . 1 1 1 1 2 2 1 . . . . 1 2 3 2 1 1 1 1 Propulsion 2 | . . . 2 4 4 3 1 5 6 5 . . . . 1 5 5 3 1 . . . Utility 4 | . 1 5 4 5 5 4 5 4 4 4 2 4 3 4 5 8 10 9 5 4 4 3 Weapon 5 | . 2 6 8 10 10 9 9 6 7 5 1 1 . . . . . . . . . . Tool/Special . | . . . . . . . . . . . . . . . . . . . . . . . Unused Backups 33 | . 1 . 4 . . . 8 2 . 4 1 . . . . 5 . . 6 . . 2 Power 5 | . . . . . . . 1 1 . 2 . . . . . 1 . . . . . . Propulsion 6 | . . . . . . . . . . . . . . . . 3 . . 3 . . . Utility 14 | . 1 . . . . . 5 1 . 1 1 . . . . 1 . . 2 . . 2 Weapon 8 | . . . 4 . . . 2 . . 1 . . . . . . . . 1 . . . Tool/Special . | . . . . . . . . . . . . . . . . . . . . . . . Average Slot Usage (%) 92 | . 95 99 99 100 100 99 99 99 99 95 80 71 77 71 74 98 100 97 64 25 26 19 Engine 8 | . 13 14 10 11 11 11 9 8 9 8 4 4 5 1 . . . . . . . . Treads 24 | . 27 27 32 33 33 32 35 35 36 32 . . . . . . . . . . . . Leg 2 | . . . . . . . . . . . . . . . 15 28 29 28 10 . . . Flight 2 | . . . . . . . . . . 3 28 26 25 16 . . . . 2 3 8 4 Device 9 | . 10 8 9 11 11 11 16 10 9 8 4 . 3 12 5 11 11 9 7 . . . Storage 8 | . 14 14 11 11 11 11 9 9 9 8 . . . . 3 5 5 5 1 . . . Processor 4 | . . . 3 . . . . . . . 15 26 22 17 17 17 17 17 16 15 8 8 Hackware 1 | . . . . . . . . . . . 8 6 6 7 8 5 5 5 10 5 4 4 Protection 5 | . . 5 8 11 11 11 1 7 9 8 6 . 5 4 4 4 5 5 1 . . . Energy Gun 11 | . 13 14 21 21 22 14 8 24 25 . . . . . . . . . . . . . Energy Cannon 2 | . . . . . . 7 17 2 . . . . . . . . . . . . . . Ballistic Gun 4 | . 13 12 . . . . . . . 14 . . . . 5 17 17 16 5 . . . Peak Build Rating 112 | 7 7 8 19 19 19 19 28 40 39 40 53 49 56 81 81 95 97 100 112 48 32 41 Average Rating 32 | 5 6 7 15 18 19 18 26 31 38 36 46 43 50 61 57 89 95 94 72 29 32 26 On Entrance 36 | . 7 7 8 19 19 19 19 28 39 28 33 49 37 41 27 81 95 97 100 27 32 32 Avg Prop Armor Cover (%) 8 | . . . 7 . . . . . . . 3 . . . 15 . . . . . . . Naked Turns 4 | . . . . . . . . . . 4 . . . . . . . . . . . . Heaviest Build 98 | 14 29 32 59 60 59 59 63 70 69 65 22 16 17 26 74 85 87 87 98 12 12 12 Greatest Support 113 | 40 40 40 60 60 60 60 80 82 82 82 28 17 35 30 85 85 85 93 113 35 14 14 Greatest Overweight (x) 6 | 4 . 1 1 . . 1 1 1 . . 1 . 1 6 2 1 1 1 2 . . . Average Overweight (x) . | . . . . . . . . . . . . . . . . . . . . . . . Largest Inventory Capacity 20 | 8 15 20 20 20 20 20 20 20 20 20 5 5 5 5 20 20 20 20 20 5 5 5 Average Capacity 16 | 7 14 15 18 20 20 20 20 20 20 18 5 5 5 5 15 20 20 20 9 5 5 5 Most Carried 20 | 1 8 15 20 20 20 20 20 20 20 20 5 5 5 5 19 20 20 20 19 5 5 5 Average Carried 14 | . 4 14 16 20 20 18 19 19 20 17 3 5 4 4 9 19 20 17 8 5 5 4 Final Capacity 20 | 8 15 15 20 20 20 20 20 20 20 5 5 5 5 5 20 20 20 20 5 5 5 5 Final Carried 20 | 1 8 15 20 20 20 16 20 20 20 5 5 5 5 5 19 20 20 19 5 5 5 5 Class Distribution -------------------- 28% | Scavenger-Mutant 23% | Mutant 14% | Scavenger-Gunner 12% | Tank 8% | Scavenger-Tank Dominant Class ---------------- Mutant | -10/Materials Mutant | -10/Mines Scavenger-Mutant | -9/Materials Scavenger-Mutant | -9/Mines Scavenger-Mutant | -9/Exiles Scavenger-Mutant | -8/Mines Scavenger-Gunner | -8/Materials Tank | -8/Storage Tank | -8/Recycling Mutant | -8/Scraptown Hacker-Sprinter | -6/Factory Machinist-Sprinter | -6/Waste Scout | -6/Factory Hacker-Mutant | -5/Factory Scavenger-Mutant | -5/Extension Scavenger-Tank | -5/Cetus Scavenger-Tank | -5/Archives Scavenger-Gunner | -5/Hub_04(d) Hacker-Mutant | -4/Factory Mutant | -3/Research Scavenger-Mutant | -2/Research Mutant | -1/Access Resources | -11 -10 -10 -9 -9 -9 -8 -8 -8 -8 -8 -6 -6 -6 -5 -5 -5 -5 -5 -4 -3 -2 -1 ----------- Run | Yrd Mat Min Mat Min Exi Min Mat Sto Rec Scr Fac Was Fac Fac Ext Cet Arc Hub Fac Res Res Acc Matter Collected 4941 | 297 219 258 255 182 . 99 277 587 24 140 501 . 95 141 577 329 168 562 140 10 . 80 Remotely . | . . . . . . . . . . . . . . . . . . . . . . . Salvage Created 11225 | 124 785 211 1453 337 . 242 1930 2432 111 . 749 . 208 68 855 194 . 1002 443 . . 81 Parts 543 | 9 42 11 77 24 . 10 87 132 11 . 33 . 13 . 25 10 . 43 14 . . 2 Haulers Intercepted 23 | . 1 . 6 . . . 5 6 . . 3 . . . . . . 1 1 . . . Recyclers Shooed 6 | . 2 . . 1 . . . 2 1 . . . . . . . . . . . . . Parts Field Recycled . | . . . . . . . . . . . . . . . . . . . . . . . Retrieved Matter . | . . . . . . . . . . . . . . . . . . . . . . . Parts Self-Destructed . | . . . . . . . . . . . . . . . . . . . . . . . Prevented . | . . . . . . . . . . . . . . . . . . . . . . . Parts Restored . | . . . . . . . . . . . . . . . . . . . . . . . Kills | -11 -10 -10 -9 -9 -9 -8 -8 -8 -8 -8 -6 -6 -6 -5 -5 -5 -5 -5 -4 -3 -2 -1 ------- Run | Yrd Mat Min Mat Min Exi Min Mat Sto Rec Scr Fac Was Fac Fac Ext Cet Arc Hub Fac Res Res Acc Combat Hostiles Destroyed 219 | . 18 5 34 13 . 9 38 42 2 . 16 . 6 2 10 3 . 16 4 . . 1 Melee 5 | . 2 . . . . . . . . . 1 . . 1 . . . . 1 . . . Guns 138 | . 16 4 34 4 . 9 13 30 2 . . . . . 7 3 . 16 . . . . Cannons 21 | . . . . . . . 19 1 . . . . . . . . . . . . . 1 AOE 45 | . . 1 . 9 . . 3 10 . . 14 . 6 . . . . . 2 . . . Classes Destroyed 18 | 2 4 2 5 . . . 3 . . . 1 . . . 1 . . . . . . . Worker 13 | . . . 1 1 . 1 2 3 . . . . 1 . . . . 2 1 . . 1 Builder 12 | . 1 . . . . . 1 5 . . . . 1 1 2 . . 1 . . . . Tunneler 6 | 3 1 . . . . 1 . . . . . . . . . . . 1 . . . . Hauler 23 | . 1 . 6 . . . 5 6 . . 3 . . . . . . 1 1 . . . Recycler 10 | 1 1 . 2 . . . 1 1 . . 1 . . . 1 . . 2 . . . . Operator 10 | . . . 2 . . . 3 . . . 1 . 3 . 1 . . . . . . . Watcher 4 | . . . 2 . . . 1 1 . . . . . . . . . . . . . . Swarmer 59 | . 3 . 3 7 . 3 7 3 . . 15 . 6 2 . . . 10 . . . . Cutter 2 | . . . . . . . 2 . . . . . . . . . . . . . . . Grunt 98 | . 15 2 19 4 . 5 16 26 . . . . . . 5 . . 2 4 . . . Brawler 4 | . . . 2 1 . . . 1 . . . . . . . . . . . . . . Duelist 5 | . . . 1 1 . 1 1 . . . . . . . 1 . . . . . . . Sentry 37 | . . 2 9 . . . 9 11 2 . . . . . 3 . . 1 . . . . Hunter 6 | . . . . . . . 2 1 . . . . . . . . . 3 . . . . Programmer 2 | . . . . . . . . . . . 1 . . . . . . . . . . 1 Heavy 1 | . . . . . . . 1 . . . . . . . . . . . . . . . Behemoth 1 | . . . . . . . . . . . . . . . 1 . . . . . . . Cetus Guard 3 | . . . . . . . . . . . . . . . . 3 . . . . . . Assembled 1 | . . 1 . . . . . . . . . . . . . . . . . . . . Thug 1 | . . . . . . . . 1 . . . . . . . . . . . . . . Best Kill Streak 10 | 4 2 2 10 4 . 3 6 9 1 . 5 . 5 2 2 2 . 9 4 . . 1 Combat Bots Only 8 | . 2 2 8 4 . 3 5 8 1 . 4 . 4 2 2 2 . 5 3 . . 1 Max Kills in Single Turn 5 | 1 2 1 1 3 . 1 1 5 1 . 3 . 4 1 1 1 . 2 2 . . 1 Gunslinging 1 | . . . . . . . . 1 . . . . . . . . . . . . . . Exploded 4 | . . 1 . 3 . . 1 4 . . 3 . 3 . . . . . 1 . . . Melee 1 | . 1 . . . . . . . . . 1 . . 1 . . . . 1 . . . Uniques/NPCs Destroyed . | . . . . . . . . . . . . . . . . . . . . . . . Combat | -11 -10 -10 -9 -9 -9 -8 -8 -8 -8 -8 -6 -6 -6 -5 -5 -5 -5 -5 -4 -3 -2 -1 -------- Run | Yrd Mat Min Mat Min Exi Min Mat Sto Rec Scr Fac Was Fac Fac Ext Cet Arc Hub Fac Res Res Acc Hostile Shots Fired 1429 | . 83 23 97 15 . 30 131 92 . . 227 1 64 61 50 33 7 118 125 138 2 132 Missed 555 | . 22 5 20 8 . 6 39 34 . . 121 . 33 15 17 13 . 40 50 78 2 52 Hits 874 | . 61 18 77 7 . 24 92 58 . . 106 1 31 46 33 20 7 78 75 60 . 80 Melee 11 | . . . 4 . . . 4 . . . . 1 2 . . . . . . . . . Projectile 863 | . 61 18 73 7 . 24 88 58 . . 106 . 29 46 33 20 7 78 75 60 . 80 AOE 2 | . . . . . . . . . . . . . 1 1 . . . . . . . . Critical Strikes 35 | . . . 1 . . . 4 3 . . 2 1 2 . 5 5 . 4 3 3 . 2 Part Disruptions 1 | . . . 1 . . . . . . . . . . . . . . . . . . . Damage Taken 15167 | . 723 299 992 111 . 378 1483 886 . . 1568 43 509 902 712 610 181 1331 1143 1473 . 1823 Core 5336 | . 71 86 164 . . 55 222 123 . . 398 43 126 140 182 24 51 114 722 1210 . 1605 Absorbed by Shields 118 | . . . . . . . . . . . . . . . 118 . . . . . . . Regen/Repaired (Parts) 415 | . . . 145 . . . 47 223 . . . . . . . . . . . . . . Core Remaining (%) 49 | 100 . 37 . . . 45 . . . 37 . . 33 . . . . 48 37 6 100 . Volleys Fired 524 | 9 60 30 91 19 . 20 94 70 2 . 11 . 3 . 44 20 8 37 . . . 6 Largest 3 | 2 2 2 2 2 . 2 3 3 3 . 1 . 1 . 3 3 3 3 . . . 1 Hottest 240 | 60 60 100 130 130 . 130 228 240 215 . 30 . 30 . 102 101 101 105 . . . 120 Shots Fired 1148 | 18 118 41 181 26 . 39 272 184 7 . 11 . 3 . 60 58 23 101 . . . 6 Gun 873 | 18 116 22 180 11 . 39 76 162 7 . . . . . 60 58 23 101 . . . . Cannon 210 | . . . . . . . 193 11 . . . . . . . . . . . . . 6 Launcher 48 | . 2 2 1 15 . . 3 11 . . 11 . 3 . . . . . . . . . Special 17 | . . 17 . . . . . . . . . . . . . . . . . . . . Kinetic 329 | 9 58 11 2 . . . 10 . . . . . . . 57 58 23 101 . . . . Thermal 771 | 9 58 28 178 11 . 39 259 173 7 . . . . . 3 . . . . . . 6 Explosive 29 | . 2 2 1 5 . . 3 2 . . 11 . 3 . . . . . . . . . Electromagnetic 19 | . . . . 10 . . . 9 . . . . . . . . . . . . . . Robot Hit Streak 31 | 8 31 18 19 6 . 15 17 23 8 . 13 . . . 6 10 5 4 . . . 7 Robot Miss Streak 9 | 2 2 1 9 2 . 5 6 5 1 . 2 . 1 . 5 4 4 5 . . . . Penetration Max 2 | . . . . . . . . . . . . . . . 1 1 . 2 . . . . Secondary Targets 13 | . . . 1 . . 2 . 4 . . . . . . . 1 . 5 . . . . Max Gunslinging Chain 1 | . . . 1 . . 1 . 1 . . . . . . . 1 . 1 . . . . Shots Hit Robots 827 | 12 86 18 165 12 . 37 173 135 4 . 23 . 2 5 48 37 13 48 6 . . 3 Core Hits 690 | 6 34 11 202 26 . 57 86 124 4 . 21 . 13 . 23 15 2 31 31 2 . 2 Critical Kills 5 | . . . . . . . 1 . . . . . . . . 1 . 3 . . . . Critical Parts Destroyed 21 | . . . . . . . . . . . 4 . 1 1 7 4 . 4 . . . . Critical Strikes 29 | . . . . . . . 1 . . . 4 . 1 1 8 5 . 7 2 . . . Meltdown 1 | . . . . . . . 1 . . . . . . . . . . . . . . . Destroy 15 | . . . . . . . . . . . . . . . 3 5 . 7 . . . . Smash 11 | . . . . . . . . . . . 4 . 1 1 5 . . . . . . . Sever 2 | . . . . . . . . . . . . . . . . . . . 2 . . . Melee Attacks 135 | . . . . . . . . . . . 74 . 21 15 13 . . . 12 . . . Impact 97 | . . . . . . . . . . . 54 . 21 9 13 . . . . . . . Slashing 37 | . . . . . . . . . . . 19 . . 6 . . . . 12 . . . Piercing . | . . . . . . . . . . . . . . . . . . . . . . . Sneak Attacks 11 | . . . . . . . . . . . 5 . . 2 2 . . . 2 . . . Combat Hostiles 1 | . . . . . . . . . . . . . . . . . . . 1 . . . Follow-up Attacks . | . . . . . . . . . . . . . . . . . . . . . . . Damage Inflicted 23206 | 166 1048 383 2444 682 . 621 4307 4050 160 . 1778 . 497 357 1908 1192 343 1811 1191 31 . 237 Guns 13142 | 165 1004 199 2313 188 . 556 1278 2877 120 . . . . . 1183 1192 343 1724 . . . . Cannons 2788 | . . . . . . . 2545 90 . . . . . . . . . . . . . 153 Explosions 3971 | . . 143 70 438 . . 366 993 . . 906 . 366 . . . . . 621 . . 68 Melee 2650 | . . . . . . . . . . . 872 . 131 357 725 . . . 565 . . . Ramming 631 | 1 44 17 61 56 . 65 118 90 40 . . . . . . . . 87 5 31 . 16 Kinetic 5290 | 109 579 103 30 . . . 68 . . . . . . . 1142 1192 343 1724 . . . . Thermal 11168 | 56 425 120 2283 298 . 556 3914 3134 120 . . . . . 41 . . . . . . 221 Explosive 1806 | . . 143 70 . . . 169 152 . . 906 . 366 . . . . . . . . . Electromagnetic 1661 | . . . . 328 . . 38 674 . . . . . . . . . . 621 . . . Impact 1828 | . . . . . . . . . . . 615 . 131 357 725 . . . . . . . Slashing 822 | . . . . . . . . . . . 257 . . . . . . . 565 . . . Piercing . | . . . . . . . . . . . . . . . . . . . . . . . Highest Corruption 26 | . . . . . . . 4 4 4 . 2 11 15 18 23 23 23 26 6 1 . 1 Average Corruption 8 | . . . . . . . 2 4 4 . 1 5 12 9 22 23 23 24 3 1 . 1 Corruption Purged 3 | . . . . . . . . . . . . . . 3 . . . . . . . . Corruption Blocked . | . . . . . . . . . . . . . . . . . . . . . . . Effects 228 | . . . . . . . 14 40 27 . 6 2 18 9 57 19 9 23 2 1 . 1 Message Errors 64 | . . . . . . . 2 13 8 . 1 . 3 5 17 5 4 4 1 1 . . Matter Fused 42 | . . . . . . . 4 10 6 . 1 . 2 1 11 3 . 3 . . . 1 Heat Flow Errors 24 | . . . . . . . 4 2 4 . 1 . 5 . 4 2 . 2 . . . . Energy Discharges 17 | . . . . . . . . 2 3 . . . 2 1 6 1 . 2 . . . . Parts Rejected 6 | . . . . . . . . . . . 1 . 1 . 3 . . 1 . . . . Parts Fused 3 | . . . . . . . . . . . . . 1 . 1 1 . . . . . . Data Loss (minor) 23 | . . . . . . . . 4 3 . 2 . 3 . 6 . . 4 1 . . . Data Loss (major) 11 | . . . . . . . 2 1 2 . . . . 2 . 1 2 1 . . . . Misfires 11 | . . . . . . . 2 3 1 . . . . . 1 2 1 1 . . . . Alerts 2 | . . . . . . . . 2 . . . . . . . . . . . . . . Misdirections 9 | . . . . . . . . . . . . 2 1 . 3 . . 3 . . . . Weapon Failures 16 | . . . . . . . . 3 . . . . . . 5 4 2 2 . . . . Overload Shots . | . . . . . . . . . . . . . . . . . . . . . . . Overflow Damage 1355 | . 10 . . 13 . . 42 . . . 463 . 116 190 506 . . . 14 . . 1 Projectiles 4 | . . . . . . . 4 . . . . . . . . . . . . . . . Explosions 62 | . 10 . . 13 . . 28 . . . 11 . . . . . . . . . . . Melee 1289 | . . . . . . . 10 . . . 452 . 116 190 506 . . . 14 . . 1 Knockbacks 12 | . 1 1 . . . 1 1 . 1 . 2 . 1 1 1 . . 1 . . . 1 Impact 12 | . 1 1 . . . 1 1 . 1 . 2 . 1 1 1 . . 1 . . . 1 Kinetic . | . . . . . . . . . . . . . . . . . . . . . . . Secondary . | . . . . . . . . . . . . . . . . . . . . . . . Self-Inflicted Damage 310 | . 44 . . 40 . . 22 34 . . 118 . . . . . . . 2 14 . 36 Shots 14 | . 1 . . 3 . . 1 2 . . 6 . . . . . . . . . . 1 Rammed 64 | 1 10 5 9 4 . 4 7 11 4 . . . . . . . . . 4 4 . 1 Targets Rammed 86 | 1 14 5 11 5 . 6 8 12 4 . . . . . . . . 11 4 4 . 1 Kicked 11 | . . . . . . . . . . . . . . . . . . 11 . . . . Crushed 11 | . 4 . 2 1 . 2 1 1 . . . . . . . . . . . . . . Highest Temperature 363 | . 93 241 329 72 . 363 240 336 210 . 207 1 232 14 204 243 . 227 . . . 180 Average Temperature 78 | . 33 87 99 20 . 146 53 103 80 . 27 1 79 5 73 97 . 37 . . . 76 Received Heat Transfer 2867 | . 321 132 384 24 . 180 414 432 . . 249 . 24 81 182 . 18 171 36 75 . 144 Effects 11 | . . . 7 . . 3 . 1 . . . . . . . . . . . . . . Shutdowns 2 | . . . 1 . . . . 1 . . . . . . . . . . . . . . Energy Bleed 1 | . . . 1 . . . . . . . . . . . . . . . . . . . Interference 6 | . . . 5 . . 1 . . . . . . . . . . . . . . . . Matter Decay 1 | . . . . . . 1 . . . . . . . . . . . . . . . . Short Circuit 1 | . . . . . . 1 . . . . . . . . . . . . . . . . Siege Activations . | . . . . . . . . . . . . . . . . . . . . . . . Martial Activations . | . . . . . . . . . . . . . . . . . . . . . . . Shielding Activations . | . . . . . . . . . . . . . . . . . . . . . . . Robots Disrupted 2 | . . . . . . . . 1 . . . . . . . . . . 1 . . . Combat Hostiles 1 | . . . . . . . . . . . . . . . . . . . 1 . . . Robots Corrupted 13 | . . . . . . . 1 . . . 3 . 2 1 4 . . . 1 . . 1 Combat Hostiles 6 | . . . . . . . . . . . 1 . . 1 3 . . . 1 . . . Parts Fried 28 | . . . . 1 . . 1 . . . 4 . 4 1 10 . . . 5 . . 2 Impact Corruptions 40 | . . . . . . . 1 . . . 10 . 4 10 14 . . . . . . 1 Robots Melted 4 | . . . . . . . 3 1 . . . . . . . . . . . . . . Combat Hostiles 4 | . . . . . . . 3 1 . . . . . . . . . . . . . . Parts Melted 46 | . 1 . 2 . . . 29 13 . . 1 . . . . . . . . . . . Heat Transferred 19408 | 125 975 275 2900 315 . 695 7128 6523 237 . . . . . 74 . . . . . . 161 Parts Sabotaged . | . . . . . . . . . . . . . . . . . . . . . . . Parts Stolen . | . . . . . . . . . . . . . . . . . . . . . . . Parts Stripped . | . . . . . . . . . . . . . . . . . . . . . . . Power Chain Reactions 5 | . . . . 1 . . . 3 . . 1 . . . . . . . . . . . Alert | -11 -10 -10 -9 -9 -9 -8 -8 -8 -8 -8 -6 -6 -6 -5 -5 -5 -5 -5 -4 -3 -2 -1 ------- Run | Yrd Mat Min Mat Min Exi Min Mat Sto Rec Scr Fac Was Fac Fac Ext Cet Arc Hub Fac Res Res Acc Maximum Alert Level 3 | . 1 . 2 1 . . 2 3 2 . 2 . 2 1 2 1 1 2 1 1 . 1 Low Security (%) 57 | 100 80 100 68 60 . 100 60 15 25 . 54 100 16 92 61 . 10 18 56 98 100 90 Level 1 26 | . 19 . 19 39 . . 11 20 69 . 26 . 83 7 23 100 89 24 43 1 . 9 Level 2 12 | . . . 12 . . . 28 32 4 . 19 . . . 15 . . 57 . . . . Level 3 3 | . . . . . . . . 31 . . . . . . . . . . . . . . Level 4 . | . . . . . . . . . . . . . . . . . . . . . . . Level 5 . | . . . . . . . . . . . . . . . . . . . . . . . High Security . | . . . . . . . . . . . . . . . . . . . . . . . Max Security . | . . . . . . . . . . . . . . . . . . . . . . . Peak Influence 894 | 10 235 90 449 264 . 80 558 894 412 . 542 187 409 200 428 348 280 522 255 204 54 216 Initial 334 | . . 63 14 169 . . . 208 334 . . 187 116 200 45 219 119 80 255 93 41 26 Average 211 | 1 130 36 187 191 . 18 213 521 271 . 207 179 222 152 159 285 241 348 153 75 42 80 Influence Increases 10799 | 20 629 276 1164 459 . 235 1360 1375 265 . 1224 . 565 124 829 329 181 832 378 231 33 290 Destroy 0b10 Robot/C 5100 | . 360 160 740 320 . 180 760 840 60 . 320 . 120 40 420 160 80 380 80 60 . 20 Destroy 0b10 Robot/NC 445 | 20 20 . 75 5 . 10 65 85 . . 25 . 25 5 50 10 . 35 10 . . 5 Destroy Leader 1040 | . 82 20 220 50 . 30 212 216 . . 56 . 20 . 52 . . 60 2 10 . 10 Allied During Kill 503 | . . 22 13 8 . . . 14 3 . . . . . 91 133 44 137 . 38 . . Successful Hack 420 | . 20 . 48 . . . 46 18 22 . 48 . 24 18 48 . . . 53 . 33 42 Select Force Hacks 520 | . 60 . 60 . . . 60 60 180 . . . 50 . . . . 50 . . . . Disable Machine 690 | . 15 45 . 45 . . 60 60 . . 120 . 75 . . . 45 60 150 . . 15 Destroy Structure 566 | . 12 14 8 31 . . 37 37 . . 85 . 26 16 138 26 12 80 8 18 . 18 Partial Spotted 60 | . 15 . . . . . . . . . 30 . . . . . . . . . . 15 Lose Combat Pursuer 1455 | . 45 15 . . . 15 120 45 . . 540 . 225 45 30 . . 30 75 105 . 165 Influence Decreases 10593 | 20 467 400 768 681 212 235 865 1012 1014 109 688 369 323 439 531 423 249 540 721 336 63 128 Entered New Map 3084 | . . 99 24 265 212 . . 287 524 109 . 349 51 209 49 173 179 150 267 86 33 18 Time Decay 5507 | 20 427 281 644 416 . 205 569 565 490 . 368 10 222 130 369 160 70 190 171 90 30 80 Lost Part 800 | . 40 20 40 . . 30 60 10 . . 160 10 50 100 20 30 . 80 40 80 . 30 Lost Ally 433 | . . . 60 . . . . . . . 10 . . . 93 60 . 120 10 80 . . Purge Threat 769 | . . . . . . . 236 150 . . 150 . . . . . . . 233 . . . Squads Dispatched 72 | . 7 . 7 . . . 6 8 . . 16 . 10 2 2 . . 8 2 3 1 . Investigation 38 | . 6 . 4 . . . 3 2 . . 12 . 7 . 1 . . 1 . 1 1 . Extermination 7 | . . . . . . . . . . . 3 . 1 1 . . . . 1 1 . . Reinforcement 22 | . 1 . 3 . . . 3 4 . . 1 . 2 1 1 . . 4 1 1 . . Assault 5 | . . . . . . . . 2 . . . . . . . . . 3 . . . . Garrison . | . . . . . . . . . . . . . . . . . . . . . . . Intercept . | . . . . . . . . . . . . . . . . . . . . . . . Searches Triggered . | . . . . . . . . . . . . . . . . . . . . . . . Construction Impeded 5 | . . . . . . . . 1 . . 1 . . . 1 . . 2 . . . . Haulers Reinforced 3 | . . . . . . . . . . . . . 1 . . . . 1 1 . . . Active Scanning Responses . | . . . . . . . . . . . . . . . . . . . . . . . Cargo Convoy Interrupts . | . . . . . . . . . . . . . . . . . . . . . . . Stealth | -11 -10 -10 -9 -9 -9 -8 -8 -8 -8 -8 -6 -6 -6 -5 -5 -5 -5 -5 -4 -3 -2 -1 --------- Run | Yrd Mat Min Mat Min Exi Min Mat Sto Rec Scr Fac Was Fac Fac Ext Cet Arc Hub Fac Res Res Acc Distress Signals 29 | . 3 2 4 . . . 6 1 . . 3 . . 2 1 1 . 2 3 . 1 . Communications Jammed . | . . . . . . . . . . . . . . . . . . . . . . . Distress Signals . | . . . . . . . . . . . . . . . . . . . . . . . Times Spotted 481 | . 28 10 49 12 . 10 56 50 1 . 69 6 37 14 23 10 4 33 19 23 4 23 Peak Tracking Total 15 | . 4 2 7 3 . 3 5 9 1 . 14 6 13 6 5 5 1 10 9 10 3 15 Tactical Retreats 45 | . 2 2 . . . 1 5 2 . . 15 . 5 2 2 . . 1 3 3 . 2 Traps | -11 -10 -10 -9 -9 -9 -8 -8 -8 -8 -8 -6 -6 -6 -5 -5 -5 -5 -5 -4 -3 -2 -1 ------- Run | Yrd Mat Min Mat Min Exi Min Mat Sto Rec Scr Fac Was Fac Fac Ext Cet Arc Hub Fac Res Res Acc Traps Triggered 22 | . 3 . 2 . . . 2 . . . 2 . 4 2 5 . . . 1 1 . . Indirectly . | . . . . . . . . . . . . . . . . . . . . . . . Trap Hack Attempts . | . . . . . . . . . . . . . . . . . . . . . . . Triggered . | . . . . . . . . . . . . . . . . . . . . . . . Disarmed . | . . . . . . . . . . . . . . . . . . . . . . . Reprogrammed . | . . . . . . . . . . . . . . . . . . . . . . . Reused . | . . . . . . . . . . . . . . . . . . . . . . . Traps Extracted . | . . . . . . . . . . . . . . . . . . . . . . . Installed . | . . . . . . . . . . . . . . . . . . . . . . . Triggered . | . . . . . . . . . . . . . . . . . . . . . . . Objects Rigged 10 | . . . . . . . . . . . . . . . . . . . 10 . . . Exploded 3 | . . . . . . . . . . . . . . . . . . . 3 . . . Machines | -11 -10 -10 -9 -9 -9 -8 -8 -8 -8 -8 -6 -6 -6 -5 -5 -5 -5 -5 -4 -3 -2 -1 ---------- Run | Yrd Mat Min Mat Min Exi Min Mat Sto Rec Scr Fac Was Fac Fac Ext Cet Arc Hub Fac Res Res Acc Machines Disabled 47 | . 1 3 . 3 . . 4 4 . . 8 . 5 . 1 . 3 4 10 . . 1 Max in Single Turn 8 | . 1 2 . 2 . . 2 1 . . 4 . 2 . . . 1 1 8 . . 1 Garrison Access 4 | . . . . . . . 1 . . . 2 . . . . . . 1 . . . . Network Hub 2 | . . . . . . . . . . . . . . . . . . 2 . . . . Energy Cycler 1 | . . . . . . . . . . . . . . . . . . . . . . 1 Machines Repaired . | . . . . . . . . . . . . . . . . . . . . . . . Machines Dismantled . | . . . . . . . . . . . . . . . . . . . . . . . Machines Sabotaged 1 | . . . . . . . . . . . . . . . . . . 1 . . . . Overloaded Fab Kills 3 | . . . . . . . . . . . . . 3 . . . . . . . . . Hacking | -11 -10 -10 -9 -9 -9 -8 -8 -8 -8 -8 -6 -6 -6 -5 -5 -5 -5 -5 -4 -3 -2 -1 --------- Run | Yrd Mat Min Mat Min Exi Min Mat Sto Rec Scr Fac Was Fac Fac Ext Cet Arc Hub Fac Res Res Acc Machines Accessed 135 | . 9 . 12 . 1 . 17 11 13 4 27 . 12 4 11 . . 2 6 2 2 2 Terminals 80 | . 7 . 8 . . . 11 8 6 . 10 . 4 3 11 . . 2 5 1 2 2 Fabricators 8 | . . . . . . . . . . . 5 . 2 . . . . . 1 . . . Repair Stations 5 | . . . 1 . . . 1 1 . . 1 . 1 . . . . . . . . . Recycling Units 28 | . 2 . 2 . . . 2 2 7 . 7 . 5 . . . . . . 1 . . Scanalyzers 4 | . . . 1 . . . 2 . . . 1 . . . . . . . . . . . Garrison Access 5 | . . . . . . . 1 . . . 3 . . 1 . . . . . . . . Total Hacks 358 | . 28 . 42 . 1 . 60 19 28 14 61 . 25 11 17 . . 2 34 6 6 4 Successful 202 | . 15 . 30 . 1 . 36 13 15 14 38 . 7 4 8 . . 1 15 1 2 2 Failed 155 | . 13 . 12 . . . 23 6 13 . 23 . 18 7 9 . . 1 19 5 4 2 Catastrophic 30 | . 1 . 3 . . . 5 3 1 . 5 . 2 . 2 . . 1 5 1 . 1 Database Lockouts 1 | . . . . . . . 1 . . . . . . . . . . . . . . . Manual 201 | . 26 . 31 . . . 39 4 23 . 23 . 18 5 5 . . 2 16 5 2 2 Terminals 241 | . 25 . 32 . . . 48 13 16 . 23 . 9 8 17 . . 2 33 5 6 4 Fabricators 19 | . . . . . . . . . . . 13 . 5 . . . . . 1 . . . Repair Stations 12 | . . . 3 . . . 1 4 . . 3 . 1 . . . . . . . . . Recycling Units 44 | . 3 . 3 . . . 4 2 12 . 9 . 10 . . . . . . 1 . . Scanalyzers 17 | . . . 4 . . . 6 . . . 7 . . . . . . . . . . . Garrison Access 10 | . . . . . . . 1 . . . 6 . . 3 . . . . . . . . Terminal Hacks 76 | . 4 . 11 . 1 . 12 7 1 14 7 . . 1 7 . . . 9 . 1 1 Record 9 | . . . . . 1 . . . . 8 . . . . . . . . . . . . Part Schematic 2 | . . . . . . . . . 1 . . . . . . . . . 1 . . . Robot Analysis 17 | . 1 . 9 . . . 2 . . 5 . . . . . . . . . . . . Prototype ID Bank 6 | . 2 . 1 . . . 2 1 . . . . . . . . . . . . . . Open Door 12 | . . . . . . . . 5 . . . . . . 7 . . . . . . . Level Access Points 2 | . . . . . . . . . . . . . . . . . . . . . 1 1 Branch Access Points 2 | . . . . . . . 1 . . . . . . . . . . . 1 . . . Terminal Index 4 | . 1 . . . . . 1 . . . . . . 1 . . . . 1 . . . Recycling Unit Index 1 | . . . . . . . . . . . . . . . . . . . 1 . . . Garrison Index 1 | . . . . . . . . . . . . . . . . . . . 1 . . . Alert Level 2 | . . . . . . . 1 . . . 1 . . . . . . . . . . . Unreport Threat 6 | . . . . . . . 2 1 . . 1 . . . . . . . 2 . . . Locate Traps 1 | . . . . . . . . . . . . . . . . . . . 1 . . . Transport Status 2 | . . . . . . . 1 . . . 1 . . . . . . . . . . . Recall Investigation 2 | . . . . . . . . . . . 2 . . . . . . . . . . . Recall Reinforcements 1 | . . . . . . . . . . . 1 . . . . . . . . . . . Hauler Manifests 4 | . . . 1 . . . 1 . . . 1 . . . . . . . 1 . . . Zone Layout 1 | . . . . . . . 1 . . . . . . . . . . . . . . . Proto ID Catalog 1 | . . . . . . . . . . 1 . . . . . . . . . . . . Fabricator Hacks 11 | . . . . . . . . . . . 9 . 1 . . . . . 1 . . . Network Status 3 | . . . . . . . . . . . 1 . 1 . . . . . 1 . . . Load Schematic 4 | . . . . . . . . . . . 4 . . . . . . . . . . . Build 4 | . . . . . . . . . . . 4 . . . . . . . . . . . Repair Station Hacks 6 | . . . 2 . . . . 4 . . . . . . . . . . . . . . Scan Component 3 | . . . 1 . . . . 2 . . . . . . . . . . . . . . Repair 3 | . . . 1 . . . . 2 . . . . . . . . . . . . . . Recycling Unit Hacks 3 | . . . 1 . . . 2 . . . . . . . . . . . . . . . Retrieve Components 3 | . . . 1 . . . 2 . . . . . . . . . . . . . . . Scanalyzer 14 | . . . 2 . . . 5 . . . 7 . . . . . . . . . . . Insert Component 2 | . . . . . . . 1 . . . 1 . . . . . . . . . . . Analyze 2 | . . . . . . . 1 . . . 1 . . . . . . . . . . . Retrieve Study 10 | . . . 2 . . . 3 . . . 5 . . . . . . . . . . . Garrison Access Hacks 3 | . . . . . . . 1 . . . 2 . . . . . . . . . . . Seal Access 3 | . . . . . . . 1 . . . 2 . . . . . . . . . . . Unauthorized Hacks 89 | . 11 . 14 . . . 16 2 14 . 13 . 6 3 1 . . 1 5 1 1 1 Terminals 58 | . 9 . 11 . . . 13 . 8 . 5 . . 3 1 . . 1 5 . 1 1 Track 4 | . . . . . . . 1 . . . 2 . . . 1 . . . . . . . Assimilate 6 | . . . 1 . . . . . . . 1 . . 1 . . . . 2 . 1 . Botnet 20 | . 2 . 4 . . . 5 . 3 . 1 . . 2 . . . . 2 . . 1 Detonate 1 | . . . . . . . . . . . . . . . . . . . 1 . . . Operators 2 | . 1 . 1 . . . . . . . . . . . . . . . . . . . Skim 24 | . 6 . 5 . . . 7 . 5 . 1 . . . . . . . . . . . Sabotage 1 | . . . . . . . . . . . . . . . . . . 1 . . . . Fabricators 4 | . . . . . . . . . . . 2 . 2 . . . . . . . . . Haulers 2 | . . . . . . . . . . . 1 . 1 . . . . . . . . . Overload 1 | . . . . . . . . . . . . . 1 . . . . . . . . . Recompile 1 | . . . . . . . . . . . 1 . . . . . . . . . . . Repair Stations 2 | . . . 1 . . . 1 . . . . . . . . . . . . . . . Patch 2 | . . . 1 . . . 1 . . . . . . . . . . . . . . . Recycling Units 25 | . 2 . 2 . . . 2 2 6 . 6 . 4 . . . . . . 1 . . Tunnel 14 | . 2 . 2 . . . 2 2 6 . . . . . . . . . . . . . Fedlink 10 | . . . . . . . . . . . 6 . 4 . . . . . . . . . Scrapoids 1 | . . . . . . . . . . . . . . . . . . . . 1 . . Scanalyzers . | . . . . . . . . . . . . . . . . . . . . . . . Garrison Access . | . . . . . . . . . . . . . . . . . . . . . . . Data Cores Recovered 7 | . . . 1 . . . 2 . . . 1 . 2 . 1 . . . . . . . Used 2 | . . . . . . . . . . . . . 1 . 1 . . . . . . . Hacking Detections 90 | . 7 . 10 . . . 12 5 8 . 18 . 8 4 7 . . 1 5 1 2 2 Full Trace Events 15 | . 2 . . . . . 1 1 2 . 5 . 2 . 1 . . . . . 1 . Feedback Events 1 | . . . . . . . . . . . 1 . . . . . . . . . . . Corruption 1 | . . . . . . . . . . . 1 . . . . . . . . . . . Feedback Blocked . | . . . . . . . . . . . . . . . . . . . . . . . Robot Schematics Acquired . | . . . . . . . . . . . . . . . . . . . . . . . Robots Built . | . . . . . . . . . . . . . . . . . . . . . . . Authchips . | . . . . . . . . . . . . . . . . . . . . . . . Time . | . . . . . . . . . . . . . . . . . . . . . . . Total Robot Build Rating . | . . . . . . . . . . . . . . . . . . . . . . . Part Schematics Acquired 4 | . . . . . . . 1 . 1 . 1 . . . . . . . 1 . . . Parts Built 8 | . . . . . . . . . . . 8 . . . . . . . . . . . Authchips 1 | . . . . . . . . . . . 1 . . . . . . . . . . . Time 262 | . . . . . . . . . . . 262 . . . . . . . . . . . Total Part Build Rating 32 | . . . . . . . . . . . 32 . . . . . . . . . . . Part Studies Acquired 10 | . . . 2 . . . 3 . . . 5 . . . . . . . . . . . Parts Repaired 3 | . . . 1 . . . . 2 . . . . . . . . . . . . . . Time 84 | . . . 32 . . . . 52 . . . . . . . . . . . . . . Parts Recycled . | . . . . . . . . . . . . . . . . . . . . . . . Recycled Matter . | . . . . . . . . . . . . . . . . . . . . . . . Retrieved Matter . | . . . . . . . . . . . . . . . . . . . . . . . Retrieved Components 30 | . . . 10 . . . 20 . . . . . . . . . . . . . . . Parts Scanalyzed 2 | . . . . . . . 1 . . . 1 . . . . . . . . . . . Part Schematics Acquired 2 | . . . . . . . 1 . . . 1 . . . . . . . . . . . Parts Damaged . | . . . . . . . . . . . . . . . . . . . . . . . Bothacking | -11 -10 -10 -9 -9 -9 -8 -8 -8 -8 -8 -6 -6 -6 -5 -5 -5 -5 -5 -4 -3 -2 -1 ------------ Run | Yrd Mat Min Mat Min Exi Min Mat Sto Rec Scr Fac Was Fac Fac Ext Cet Arc Hub Fac Res Res Acc Used RIF Installer . | . . . . . . . . . . . . . . . . . . . . . . . Robots Hacked 1 | . . . . . . . . . . . 1 . . . . . . . . . . . Non-combat 1 | . . . . . . . . . . . 1 . . . . . . . . . . . Combat . | . . . . . . . . . . . . . . . . . . . . . . . Robot Hacks Applied 1 | . . . . . . . . . . . 1 . . . . . . . . . . . find_chute 1 | . . . . . . . . . . . 1 . . . . . . . . . . . Relay Couplers Released . | . . . . . . . . . . . . . . . . . . . . . . . Fabnet Peak Effective % . | . . . . . . . . . . . . . . . . . . . . . . . Robots Rewired 8 | . . . . . . . . . . . . . . . 8 . . . . . . . Allies Hacked 3 | . . . . . . . . . . . . . . . . . . . . 3 . . Hacks Repelled . | . . . . . . . . . . . . . . . . . . . . . . . Allies | -11 -10 -10 -9 -9 -9 -8 -8 -8 -8 -8 -6 -6 -6 -5 -5 -5 -5 -5 -4 -3 -2 -1 -------- Run | Yrd Mat Min Mat Min Exi Min Mat Sto Rec Scr Fac Was Fac Fac Ext Cet Arc Hub Fac Res Res Acc Total Allies 34 | . . 3 . 1 . . . 2 . . 1 . . . 20 . . . 1 5 1 . Largest Group 12 | . . 3 3 1 . . . 2 1 1 1 . . . 12 11 7 6 1 5 1 . Highest-Rated Group 422 | . . 40 40 31 . . . 62 31 31 26 . . . 422 342 198 159 26 323 26 . Highest-Rated Ally 159 | . . 16 16 31 . . . 31 31 31 26 . . . 159 39 39 39 26 67 26 . Total Orders . | . . . . . . . . . . . . . . . . . . . . . . . Ally Attacks 348 | . . 38 34 9 . . . 22 4 . . . . . 98 57 18 42 . 26 . . Total Damage 6526 | . . 407 330 164 . . . 269 61 . . . . . 2719 1140 271 587 . 578 . . Kills 51 | . . 6 5 3 . . . 1 1 . . . . . 17 7 5 3 . 3 . . Allies Corrupted 2 | . . . . . . . . . . . . . . . . . . . . 2 . . Allies Melted 1 | . . . . . . . . . . . . . . . 1 . . . . . . . Intel | -11 -10 -10 -9 -9 -9 -8 -8 -8 -8 -8 -6 -6 -6 -5 -5 -5 -5 -5 -4 -3 -2 -1 ------- Run | Yrd Mat Min Mat Min Exi Min Mat Sto Rec Scr Fac Was Fac Fac Ext Cet Arc Hub Fac Res Res Acc Active Infowar (turns) 5285 | 24 340 419 . . . . . . . 149 773 26 476 277 1080 329 140 391 452 182 67 160 Optics 3527 | . . . . . . . . . . . 244 26 476 277 1080 329 140 391 452 112 . . Sensors 700 | . . . . . . . . . . . 186 . 277 169 . . . . 68 . . . IFF 162 | . . . . . . . . . . . 162 . . . . . . . . . . . Terrain 234 | . . . . . . . . . . . . . . 176 58 . . . . . . . Seismic 1084 | 24 340 419 . . . . . . . 138 163 . . . . . . . . . . . T.N.C. 537 | . . . . . . . . . . . . . . . . . . . 128 182 67 160 Machine Analysis 564 | . . . . . . . . . . 149 415 . . . . . . . . . . . Triangulation 114 | . . . . . . . . . . . 114 . . . . . . . . . . . ECM 24 | . . . . . . . . . . . 3 . . 1 . . . . 20 . . . Robot Analysis Total 17 | . 1 . 9 . . . 2 . . 5 . . . . . . . . . . . . Derelict Logs Recovered 3 | . . 2 . 1 . . . . . . . . . . . . . . . . . . Drone Launches . | . . . . . . . . . . . . . . . . . . . . . . . Drone Recoveries . | . . . . . . . . . . . . . . . . . . . . . . . Exploration | -11 -10 -10 -9 -9 -9 -8 -8 -8 -8 -8 -6 -6 -6 -5 -5 -5 -5 -5 -4 -3 -2 -1 ------------- Run | Yrd Mat Min Mat Min Exi Min Mat Sto Rec Scr Fac Was Fac Fac Ext Cet Arc Hub Fac Res Res Acc Turns Passed 18035 | 109 1295 844 2384 1009 205 955 2114 1695 1295 1661 889 26 476 277 1080 329 140 391 452 182 67 160 Spaces Moved 13660 | 43 547 435 1209 587 129 547 1061 804 545 1458 2023 84 1177 488 657 173 68 171 576 368 179 331 Core 549 | 15 . . . . . . . . . 2 . . . 14 134 . . . 46 216 . 122 Treads 6797 | 28 547 435 1209 587 129 547 1061 804 545 905 . . . . . . . . . . . . Legs 778 | . . . . . . . . . . . . . . . 247 173 68 171 119 . . . Wheels 276 | . . . . . . . . . . . . . . . 276 . . . . . . . Hover . | . . . . . . . . . . . . . . . . . . . . . . . Flight 5260 | . . . . . . . . . . 551 2023 84 1177 474 . . . . 411 152 179 209 Fastest Speed 11 | 50 160 160 160 160 160 160 160 158 163 26 11 23 21 29 50 120 120 120 45 28 37 37 Average Speed 104 | 163 160 160 160 160 160 160 160 162 163 111 26 25 28 42 117 125 161 148 61 44 37 41 Slowest Speed 435 | 250 160 240 240 160 160 240 240 200 163 163 69 29 117 435 190 190 190 190 150 50 37 50 Overloaded Moves 7 | . . . . . . . . . . . 6 . 1 . . . . . . . . . Propulsion Burnouts . | . . . . . . . . . . . . . . . . . . . . . . . Robots Hopped 44 | . . . . . . . . . . . 19 3 7 6 . 1 . . 3 2 3 . Potential Cave-ins 13 | . . . . 3 . . . . . . 9 . 1 . . . . . . . . . Cave-ins Triggered 1 | . . . . . . . . . . . . . . 1 . . . . . . . . Exploration Rate (%) 59 | 3 87 92 86 99 52 97 95 92 96 87 64 84 39 18 79 59 81 17 15 15 8 13 Regions Visited 22 Branch Regions 11 Pre-discovered Areas 22 | . 2 1 3 . 1 . 4 2 7 1 1 . . . . . . . . . . . Known Exits Taken 15 | . . 1 1 . . 1 1 1 1 1 . . 1 1 1 1 1 1 1 . 1 . Unknown Exits Taken 5 | 1 1 . . 1 1 . . . . . . . . . . . . . . 1 . . Scrap Searched 9 | . . 1 . 2 . 1 . . . 5 . . . . . . . . . . . . Spaces Dug 91 | . . . . 24 . . . . . . 39 . 15 8 . . . . 4 . . 1 Terrain Destroyed 353 | . 11 15 7 54 . . 32 31 . . 115 . 27 8 3 8 4 28 4 . . 6 Melee 66 | . . . . . . . . . . . 39 . 15 8 . . . . 4 . . . Projectile 52 | . . 7 . . . . . . . . . . . . 3 8 4 28 . . . 2 AOE 235 | . 11 8 7 54 . . 32 31 . . 76 . 12 . . . . . . . . 4 Terrain Rammed . | . . . . . . . . . . . . . . . . . . . . . . . Walls Destroyed . | . . . . . . . . . . . . . . . . . . . . . . . Machines Disabled . | . . . . . . . . . . . . . . . . . . . . . . . Actions | -11 -10 -10 -9 -9 -9 -8 -8 -8 -8 -8 -6 -6 -6 -5 -5 -5 -5 -5 -4 -3 -2 -1 --------- Run | Yrd Mat Min Mat Min Exi Min Mat Sto Rec Scr Fac Was Fac Fac Ext Cet Arc Hub Fac Res Res Acc Total 15964 | 60 839 498 1467 624 128 585 1261 1012 944 1499 2200 84 1257 524 868 244 82 237 648 379 176 348 Wait 896 | . 193 2 95 2 . 4 39 50 390 . 34 2 8 . 42 28 1 2 3 . 1 . Move 13555 | 42 546 434 1208 586 128 546 1060 803 544 1457 1988 78 1162 475 656 170 67 170 569 363 172 331 Hop 40 | . . . . . . . . . . . 16 2 7 6 . 1 . . 3 2 3 . Pick Up 126 | 1 10 9 20 . . 1 24 8 . 7 13 . 1 3 13 10 . 3 3 . . . Fast Attach 99 | 7 1 . 2 . . . 4 2 . 11 14 1 9 4 19 1 . 2 9 10 . 3 Attach 66 | . 5 2 7 . . 4 7 2 . 2 14 . 2 4 4 2 . 7 2 . . 2 Detach 25 | . 2 . 2 . . 1 . . . . 6 . 3 1 3 . . . 4 . . 3 Swap 155 | . 6 15 16 11 . 1 10 42 2 4 15 . 9 3 7 3 3 3 5 . . . Drop 122 | . 2 1 15 1 . 2 15 23 2 18 7 1 2 . . 9 3 . 19 . . 2 Fire 524 | 9 60 30 91 19 . 20 94 70 2 . 11 . 3 . 44 20 8 37 . . . 6 Melee 135 | . . . . . . . . . . . 74 . 21 15 13 . . . 12 . . . Ram 11 | . . . . . . . . . . . . . . . . . . 2 4 4 . 1 Kick 11 | . . . . . . . . . . . . . . . . . . 11 . . . . Crush 66 | 1 14 5 11 5 . 6 8 12 4 . . . . . . . . . . . . . Escape Stasis 101 | . . . . . . . . . . . 8 . 30 13 35 . . . 15 . . . Rewire 32 | . . . . . . . . . . . . . . . 32 . . . . . . . Trap . | . . . . . . . . . . . . . . . . . . . . . . . Miscellaneous . | . . . . . . . . . . . . . . . . . . . . . . . Route ------- -11/Scrapyard -10/Materials (discovered 6 exits: *Mat x3 / [*Min x2] / Sub) -10/Mines (discovered 3 exits: *Mat x2 / *Sub) -9/Materials (discovered 5 exits: *Mat x3 / *Min x2) -9/Mines (discovered 3 exits: *Mat x2 / *Exi) -9/Exiles (discovered 2 exits: [*Min x2]) -8/Mines (discovered 2 exits: *Mat x2) -8/Materials (discovered 5 exits: *Fac x3 / *Sto x2) -8/Storage (discovered 2 exits: *Fac / *Rec) -8/Recycling (discovered 2 exits: *Fac / *Scr) -8/Scraptown (discovered 2 exits: *Fac x2) -6/Factory (discovered 3 exits: *Fac x2 / [*Low]) -6/Waste -6/Factory (discovered 2 exits: *Fac x2) -5/Factory -5/Extension (discovered 2 exits: *Fac / *Cet) -5/Cetus (discovered 2 exits: *Fac / *Arc) -5/Archives (discovered 3 exits: *Fac / *Hub x2) -5/Hub_04(d) -4/Factory (discovered 3 exits: *Res / Upp x2) -3/Research -2/Research (discovered 3 exits: *Acc x3) -1/Access (discovered 1 exit: Sur) History --------- Turn | Location | Event 23 | -11/Scrapyard | Discovered new exit (range 15) 110 | -11/Scrapyard | Entered Materials 276 | -10/Materials | Discovered new exit (range 10) 307 | -10/Materials | Build established: Mutant 520 | -10/Materials | Discovered new exit (range 10) 604 | -10/Materials | Discovered new exit (range 7) 890 | -10/Materials | Discovered new exit (range 13) 1294 | -10/Materials | Learned Storage trap positions 1316 | -10/Materials | Learned Storage trap positions 1326 | -10/Materials | Identified exit to Subcaves 1327 | -10/Materials | Learned location of 1 exit from Recycling 1328 | -10/Materials | Identified exit to Materials 1329 | -10/Materials | Learned location of 2 exits from Materials 1389 | -10/Materials | Learned location of 1 exit from Storage 1405 | -10/Materials | Entered Mines 1720 | -10/Mines | Learned location of Storage (-8) 1721 | -10/Mines | Assisted by bots powering up and referring to "LRC-V3" 1723 | -10/Mines | Learned Materials stockpile data 1927 | -10/Mines | Found a hidden stash of uninstalled traps 1949 | -10/Mines | Discovered exit to Subcaves (range 15) 2012 | -10/Mines | Core integrity fell below 50% 2030 | -10/Mines | Excavation squad dispatched 2030 | -10/Mines | A large section of the Mines collapsed 2249 | -10/Mines | Entered Materials 2249 | -9/Materials | Accompanied by 3 allies 2249 | -9/Materials | Evolved 2 slots: Propulsion x1, Utility x1 2250 | -9/Materials | Identified exit to Materials 2417 | -9/Materials | Lost 3 allies 2579 | -9/Materials | Build established: Scavenger-Mutant 3340 | -9/Materials | Identified exit to Mines 3460 | -9/Materials | Learned Storage emergency access door positions 3467 | -9/Materials | Learned Materials stockpile data 3482 | -9/Materials | Learned location of Mines (-9) 4022 | -9/Materials | Destroyed 8 combat bots 4083 | -9/Materials | Repaired Imp. Ion Engine 4633 | -9/Materials | Entered Mines 4797 | -9/Mines | A weapon hastily lodged in a ceiling crevice suddenly fell to the ground 4813 | -9/Mines | Received a Mining Laser from a helpful Derelict 4835 | -9/Mines | Learned location of 2 exits from Materials 5219 | -9/Mines | Deemed a non-threat by the Exiles lab entrance 5221 | -9/Mines | Discovered new exit (range 5) 5642 | -9/Mines | Entered Exiles 5668 | -9/Exiles | Discovered new exit (range 15) 5686 | -9/Exiles | Met 8R-AWN 5710 | -9/Exiles | Met EX-HEX 5751 | -9/Exiles | Met EX-BIN 5774 | -9/Exiles | Met EX-DEC 5783 | -9/Exiles | Learned location of Zion (-6) 5834 | -9/Exiles | Discovered new exit (range 10) 5847 | -9/Exiles | Entered Mines 6454 | -8/Mines | Core integrity fell below 50% 6492 | -8/Mines | Lost 3 parts (1n1u1w) 6802 | -8/Mines | Entered Materials 6802 | -8/Materials | Evolved 2 slots: Propulsion x1, Weapon x1 6803 | -8/Materials | Identified exit to Storage 6804 | -8/Materials | Identified exit to Factory 7346 | -8/Materials | Build established: Scavenger-Gunner 7558 | -8/Materials | Central database locked down 7703 | -8/Materials | Discovered exit to Factory (range 16) 7836 | -8/Materials | Learned Factory stockpile data 7869 | -8/Materials | Learned Storage stockpile data 7907 | -8/Materials | Learned location of 1 exit from Recycling 7914 | -8/Materials | Learned 4 Lower Caves zone layouts 7916 | -8/Materials | Learned Recycling recycling unit intel 7917 | -8/Materials | Learned Factory emergency access door positions 7924 | -8/Materials | Learned location of Extension (-5) 8916 | -8/Materials | Entered Storage 8917 | -8/Storage | Identified exit to Recycling 8919 | -8/Storage | Loaded intel: 20 trap records 9004 | -8/Storage | Repaired Lgt. Treads+ 9031 | -8/Storage | Repaired Lgt. Treads+? 9471 | -8/Storage | Build established: Scavenger-Tank 9479 | -8/Storage | Core integrity fell below 50% 9884 | -8/Storage | Build established: Tank 9944 | -8/Storage | Used back door to open Recycling access 10300 | -8/Storage | Met a pair of Derelict thieves 10388 | -8/Storage | Destroyed 8 combat bots 10611 | -8/Storage | Entered Recycling 10611 | -8/Recycling | Accompanied by 1 ally 10612 | -8/Recycling | Identified exit to Scraptown 10612 | -8/Recycling | Identified exit to Factory 10613 | -8/Recycling | Loaded intel: 7 recycling unit locations 11408 | -8/Recycling | Learned Storage trap positions 11484 | -8/Recycling | Learned Factory trap positions 11604 | -8/Recycling | Learned location of 1 exit from Storage 11648 | -8/Recycling | Learned 4 Lower Caves zone layouts 11731 | -8/Recycling | Learned 2 Lower Caves zone layouts 11786 | -8/Recycling | Learned 4 Lower Caves zone layouts 11867 | -8/Recycling | Scanned before Scraplab entrance 11890 | -8/Recycling | Entered Scraplab 11906 | -8/Recycling | Entered Scraptown 11906 | -8/Scraptown | Accompanied by 1 ally 11906 | -8/Scraptown | System corruption cleaned by C-Scrubber 12156 | -8/Scraptown | Build established: Mutant 12156 | -8/Scraptown | Visited UFD Registry 12156 | -8/Scraptown | Registered with UFD as "Boltchip" 12179 | -8/Scraptown | Visited CR-KLE's Repair Center 12218 | -8/Scraptown | Visited Fellowship of the Rings 12244 | -8/Scraptown | Visited Awakened 12254 | -8/Scraptown | Visited SPCMW 12278 | -8/Scraptown | Visited Cave Peace 12332 | -8/Scraptown | Visited The Evicted 12361 | -8/Scraptown | Visited Shadow of the Wyrm 12865 | -8/Scraptown | Visited Science Guys 12917 | -8/Scraptown | Visited Scrap Suit Storage 12942 | -8/Scraptown | Visited Junk Repository 13059 | -8/Scraptown | Visited Derelict Rescue Squad 13097 | -8/Scraptown | Visited Analyses Database 13131 | -8/Scraptown | Visited DA-N13 Charitable Foundation 13167 | -8/Scraptown | Visited Research Penetration Think Tank 13202 | -8/Scraptown | Visited Abandonware Association 13222 | -8/Scraptown | Learned abandonware demo "REPAIR.EXE" 13222 | -8/Scraptown | Learned abandonware demo "REVENGE.EXE" 13261 | -8/Scraptown | Visited Supply Room 13307 | -8/Scraptown | Visited Curators Association 13550 | -8/Scraptown | Met Optimus 13550 | -8/Scraptown | Accepted into 0bPrime 13567 | -8/Scraptown | Entered Factory 13567 | -6/Factory | Evolved 4 slots: Propulsion x1, Utility x3 13568 | -6/Factory | Loaded intel: 94 trap records 13635 | -6/Factory | Discovered new exit (range 5) 13703 | -6/Factory | Build established: Sprinter 13764 | -6/Factory | Lost 5 parts (1p2n1u1w) 13776 | -6/Factory | Fabricated Imp. Force Booster? 13832 | -6/Factory | Loaded intel: 8 recycling unit locations 13993 | -6/Factory | Lost 4 parts (2n2u) 14002 | -6/Factory | Found Prototype Processor 14002 | -6/Factory | Identified Exp. Targeting Computer 14024 | -6/Factory | Fabricated Surge Thruster? 14037 | -6/Factory | Learned location of Protoforge (-3) 14252 | -6/Factory | Build established: Hacker-Sprinter 14323 | -6/Factory | Fabricated Surge Thruster? 14353 | -6/Factory | Discovered new exit (range 7) 14364 | -6/Factory | Fabricated Surge Thruster? 14435 | -6/Factory | Discovered new exit (range 17) 14440 | -6/Factory | Lost 4 parts (3n1u) 14456 | -6/Factory | Sucked down chute 14456 | -6/Factory | Entered Waste 14457 | -6/Waste | Spotted C-40 Crusher 14457 | -6/Waste | Spotted C-40 Crusher 14463 | -6/Waste | Spotted C-40 Crusher 14469 | -6/Waste | Crushed by Compactor (1 part destroyed, 2 dropped) 14470 | -6/Waste | Core integrity fell below 50% 14471 | -6/Waste | EMP discharged 14471 | -6/Waste | System corruption reached 10% 14474 | -6/Waste | Spotted C-40 Crusher 14474 | -6/Waste | Spotted C-40 Crusher 14476 | -6/Waste | Spotted C-40 Crusher 14479 | -6/Waste | Discovered new exit (range 9) 14481 | -6/Waste | Identified exit to Factory 14482 | -6/Waste | Entered Factory 14488 | -6/Factory | Loaded intel: 8 recycling unit locations 14534 | -6/Factory | Spotted B-75 Beast 14683 | -6/Factory | Discovered new exit (range 9) 14685 | -6/Factory | Identified exit to Factory 14951 | -6/Factory | Discovered exit to Factory (range 11) 14958 | -6/Factory | Entered another Factory area 14958 | -5/Factory | Evolved 2 slots: Utility x2 14959 | -5/Factory | Identified exit to Extension 14972 | -5/Factory | Lost 4 parts (3n1w) 15101 | -5/Factory | Spotted B-75 Beast 15127 | -5/Factory | Crushed by falling debris 15127 | -5/Factory | System corruption reached 10% 15181 | -5/Factory | Lost 7 parts (4n2u1w) 15235 | -5/Factory | Entered Extension 15265 | -5/Extension | Lost 3 parts (1n2u) 15289 | -5/Extension | Rescued a captive Derelict 15289 | -5/Extension | Rescued a captive Derelict 15356 | -5/Extension | Rescued a captive Derelict 15358 | -5/Extension | Rescued a captive Derelict 15494 | -5/Extension | Spotted B-75 Beast 15621 | -5/Extension | Rescued A7 15713 | -5/Extension | Rescued a captive Derelict 15714 | -5/Extension | Rescued a captive Derelict 15720 | -5/Extension | Spotted B-75 Beast 15740 | -5/Extension | Rewired B-75 Beast 15755 | -5/Extension | Destroyed B-75 Beast 15798 | -5/Extension | Build established: Scavenger-Mutant 15868 | -5/Extension | Rescued a captive Derelict 15932 | -5/Extension | Extracted ID and sensor layout for unrecognized location from A7's data core 16159 | -5/Extension | Rescued a captive Derelict 16160 | -5/Extension | Rescued a captive Derelict 16188 | -5/Extension | Rescued a captive Derelict 16189 | -5/Extension | Rescued a captive Derelict 16269 | -5/Extension | Discovered new exit (range 10) 16270 | -5/Extension | Discovered new exit (range 6) 16276 | -5/Extension | Identified exit to Cetus 16295 | -5/Extension | Build established: Scavenger-Tank 16315 | -5/Extension | Entered Cetus 16315 | -5/Cetus | Accompanied by 11 allies 16331 | -5/Cetus | Spotted Cetus Guard 16331 | -5/Cetus | Spotted Cetus Guard 16331 | -5/Cetus | Spotted Cetus Guard 16331 | -5/Cetus | Spotted Cetus Guard 16340 | -5/Cetus | Allies destroyed Cetus Guard 16347 | -5/Cetus | Destroyed Cetus Guard 16357 | -5/Cetus | Allies destroyed Cetus Guard 16369 | -5/Cetus | Allies destroyed Cetus Guard 16474 | -5/Cetus | Discovered new exit (range 21) 16497 | -5/Cetus | Spotted Cetus Guard 16498 | -5/Cetus | Spotted Cetus Guard 16499 | -5/Cetus | Spotted Cetus Guard 16499 | -5/Cetus | Spotted Cetus Guard 16518 | -5/Cetus | Destroyed Cetus Guard 16527 | -5/Cetus | Destroyed Cetus Guard 16529 | -5/Cetus | Allies destroyed Cetus Guard 16535 | -5/Cetus | Allies destroyed Cetus Guard 16537 | -5/Cetus | Discovered new exit (range 22) 16558 | -5/Cetus | Met Revision 17 16615 | -5/Cetus | Identified exit to Archives 16644 | -5/Cetus | Entered Archives 16644 | -5/Archives | Accompanied by 7 allies 16699 | -5/Archives | Discovered new exit (range 15) 16717 | -5/Archives | Discovered new exit (range 21) 16719 | -5/Archives | Discovered new exit (range 17) 16775 | -5/Archives | Identified exit to Hub_04(d) 16784 | -5/Archives | Entered Hub_04(d) 16784 | -5/Hub_04(d) | Accompanied by 6 allies 16869 | -5/Hub_04(d) | Lost 4 parts (3n1u) 17000 | -5/Hub_04(d) | Discovered new exit (range 11) 17006 | -5/Hub_04(d) | Lost 6 allies 17014 | -5/Hub_04(d) | Core integrity fell below 50% 17040 | -5/Hub_04(d) | Identified exit to Factory 17047 | -5/Hub_04(d) | Lost 4 parts (1p2n1w) 17084 | -5/Hub_04(d) | First assault squad dispatched 17137 | -5/Hub_04(d) | Build established: Scavenger-Gunner 17138 | -5/Hub_04(d) | Network Hub disabled 17141 | -5/Hub_04(d) | Network Hub disabled 17144 | -5/Hub_04(d) | Spotted Lightning 17149 | -5/Hub_04(d) | Spotted Lightning 17150 | -5/Hub_04(d) | Spotted Lightning 17175 | -5/Hub_04(d) | Entered Factory 17175 | -4/Factory | Evolved 2 slots: Power x1, Propulsion x1 17451 | -4/Factory | Discovered new exit (range 15) 17565 | -4/Factory | Identified exit to Research 17580 | -4/Factory | Identified exit to Upper Caves 17621 | -4/Factory | Core integrity fell below 50% 17627 | -4/Factory | Entered Research 17627 | -3/Research | Evolved 2 slots: Propulsion x2 17644 | -3/Research | Lost 4 parts (1n2u1w) 17737 | -3/Research | Core integrity fell below 50% 17759 | -3/Research | Spotted B-86 Titan 17782 | -3/Research | Core integrity fell below 20% 17783 | -3/Research | Scrapoids reinforcements arrived? 17794 | -3/Research | P-80 Master assimilated allied 03R02-D 17806 | -3/Research | Discovered new exit (range 9) 17809 | -3/Research | Entered another Research area 17809 | -2/Research | Evolved 2 slots: Propulsion x1, Utility x1 17832 | -2/Research | Lost 4 allies 17838 | -2/Research | Lost 6 parts (1p5n) 17866 | -2/Research | Identified exit to Access 17876 | -2/Research | Entered Access 17876 | -1/Access | Evolved 2 slots: Propulsion x1, Utility x1 17886 | -1/Access | Identified exit to Surface 17938 | -1/Access | Energy Cycler disabled 17999 | -1/Access | Lost 3 parts (1p2n) 18007 | -1/Access | Core integrity fell below 50% 18015 | -1/Access | Spotted B-99 Colossus 18025 | -1/Access | Core integrity fell below 20% 18036 | -1/Access | Destroyed by S-43 Plague with Heavy Machine Gun Last Messages --------------- 18006_ H-88 Terminator suffers critical hit (Destroy). 18007_ Slug penetrates R-10 Processor. 18007_ K-01 Serf destroyed. 18007_ Penetrated by Slug. 18008_ K-01 Serf collects debris. 18008_ R-10 Processor collects Lgt. Ion Engine. 18012_ Penetrated by Slug. 18016_ K-01 Serf cleans the Fabricator. 18020_ Knocked back. 18020_ Slug penetrates Door. 18020_ Penetrated by Slug. 18020_ Slug penetrates Door. 18023_ K-01 Serf cleans the Fabricator. 18024_ Knocked back. 18024_ Slug penetrates Wall. 18024_ Penetrated by Slug. 18024_ Slug penetrates Wall. 18027_ B-99 Colossus activates siege mode. 18036_ Acquired Field Propulsion Array. Map ----- +----------------------------------------------------+ | ???????????????# #???????????????????? | | ???????????????# #???????????????????? | | ???????????????# #???????????????????? | | ???????????????# #???????????????????? | | ??????????????## ##############??????? | | ??????????????# """ # #??????? | | ??????????????# "" F"" # #??????? | | ??????????????# """""" #% " #??????? | | ??????????????# """" + """" #??????? | | ??????????????# " """""???????????? | | ??????????????# % # """"???????????? | | ???????######## #= """"???????????? | | ???????# ##### # " ???????????? | | ???????# #???# # ??????????? | | ???????# #???#### ??????????? | | ???????# #??????# ?????????? | | ???????# #??????? ] ????????? | | ???????# #???????############???????? | | ???????# #??????????????????????????? | | ???????# ##############????????????????????? | | ???????# # #????????????????????? | | ???????# #s #????????????????????? | | ???????# /ss #????????????????????? | | ???????# #s #????????????????????? | | ???????# # s != #????????????????????? | | ???????# # = !@ #????????????????????? | | ???????# # != #????????????????????? | | ???????# # #????????????????????? | | ???????# # " #????????????????????? | | ???????# # """ #????????????????????? | | ???????# # """ #????????????????????? | | ???????# # " #????????????????????? | | ???????# ##############????????????????????? | | ??????? ??????????????????????????????????? | | ?????? ??????????????????????????????????? | | ???????? ? ??????????????????????????????????? | | ???????????? ""??????????????????????????????????? | | ?????????????????????????????????????????????????? | | ?????????????????????????????????????????????????? | | ?????????????????????????????????????????????????? | | ?????????????????????????????????????????????????? | | ?????????????????????????????????????????????????? | | ?????????????????????????????????????????????????? | | ?????????????????????????????????????????????????? | | ?????????????????????????????????????????????????? | | ?????????????????????????????????????????????????? | | ?????????????????????????????????????????????????? | | ?????????????????????????????????????????????????? | | ?????????????????????????????????????????????????? | | ?????????????????????????????????????????????????? | +----------------------------------------------------+ Best States ------------- Heat Dissipation 67 Energy Generation 43 Energy Capacity 545 Matter Stores 300 Matter Capacity 300 Sight Range 22 Robot Scan Range 18 Terrain Scan Range 20 Terrain Scan Density 85 ECM Strength 1 Armor Coverage 300 Weapon Shielding 33 Weapon Cycling 20 Melee Speed Boost 20 Evasion (%) 70 Targeting Accuracy 5 Melee Accuracy 16 Armor Integrity Analysis 40 Recoil Reduction 4 Offensive Hacking 24 Defensive Hacking 14 Authchip Count 1 Item Schematics ----------------- Surge Thruster | -8/Materials | Scanalyzed Jamming Amplifier | -8/Recycling | Hacked ECM Suite | -6/Factory | Scanalyzed Impulse Thruster | -4/Factory | Hacked Robot Schematics ------------------ None Fabricated ------------ Imp. Force Booster | x2 | -6/Factory | Preloaded Surge Thruster | x2 | -6/Factory | Authchip Surge Thruster | x2 | -6/Factory Surge Thruster | x2 | -6/Factory Repaired ---------- Imp. Ion Engine | 10% | -9/Materials Lgt. Treads | 11% | -8/Storage Lgt. Treads | 29% | -8/Storage Studied --------- EMP Blaster | -9/Materials | Hacked Spread Laser | -9/Materials | Hacked Grenade Launcher | -8/Materials | Hacked Rocket Launcher | -8/Materials | Hacked Lgt. Treads | -8/Materials | Hacked Nuclear Pulse Thruster | -6/Factory | Hacked Angular Momentum Engine | -6/Factory | Hacked Xenon Bombardment Thruster | -6/Factory | Hacked Mni. Grenade Launcher | -6/Factory | Hacked Power Maul | -6/Factory | Hacked Alien Tech Used ----------------- None Achievements -------------- None Challenges ------------ None Game ------ Seed ConstructNovaStorage Manual? 0 Play Time 02:06:50 Cumulative 548.2 hours Start 2025.11.10 @ 22:21:52 End 2025.11.11 @ 18:06:34 Sessions 3 Manual Loads 0 Difficulty Rogue Special Mode None Game No. 295 Rogue 295 Adventurer 0 Explorer 0 Win Type - Total 25 Types 14/2/6/1/0/0/0/1/1/0 Lore% 94 Gallery% 89 Achievement% 80 Wizard Run 0 Options --------- Layout 2 ASCII 0 Keyboard 1 Movement Vi Keybinds 0 Fullscreen 1 Font 28/Terminus Map View 50x52 Zoom Use 0% Tactical HUD 1 Map Filters NONE Filters NONE Steam 1 RUN: 5562f18a-f36b-4e97-b727-63f4e729048a